bitfinex-derivatives/quotes_ETHF0:USTF0_20250528
["timestamp","ask_amount","ask_price","bid_price","bid_amount"]
[1748447092950,0.75825,2636.7,2636.6,20.9198]
[1748447094947,0.75825,2636.7,2636.6,21.67808]
[1748447095346,0.75825,2636.7,2636.6,20.9198]
[1748447095650,0.75828,2636.6,2636.5,0.6135]
[1748447095845,0.75828,2636.6,2636.5,23.555]
[1748447096853,0.75828,2636.6,2636.5,24.31331]
[1748447097657,0.75828,2636.6,2636.5,23.555]
[1748447098356,0.75828,2636.6,2636.5,24.31331]
[1748447099750,0.75826,2636.7,2636.6,0.75825]
[1748447100057,0.75824,2636.8,2636.7,0.75822]
[1748447100261,3.2078,2637.1,2636.5,23.555]
[1748447100561,0.75814,2637.1,2637.0,3.96596]
[1748447100760,0.75814,2637.1,2637.0,7.1218]
[1748447100947,0.75822,2636.8,2636.7,3.2078]
[1748447101465,0.75822,2636.8,2636.7,24.8328]
[1748447101759,0.75822,2636.8,2636.7,26.92355]
[1748447102057,0.75818,2637.0,2636.9,0.75818]
[1748447102754,0.75818,2637.0,2636.9,1.3325]
[1748447103757,0.75818,2637.0,2636.9,2.09069]
[1748447104056,3.28243908,2637.5,2636.9,2.09069]
[1748447104057,0.07463908,2637.5,2636.9,8.22796]
[1748447104368,0.75805,2637.4,2637.3,3.96587]
[1748447104548,0.75805,2637.4,2637.3,25.59087]
[1748447105654,0.75811,2637.2,2637.1,1.2304]
[1748447105856,0.75811,2637.2,2637.1,22.8544]
[1748447106056,0.75811,2637.2,2637.1,23.61254]
[1748447106357,0.75811,2637.2,2637.1,22.8544]
[1748447106559,0.75811,2637.2,2637.1,23.61254]
[1748447107059,0.75811,2637.2,2637.1,22.8544]
[1748447107862,0.75811,2637.2,2637.1,1.2304]
[1748447108461,0.75811,2637.2,2637.1,22.8534]
[1748447108761,0.75814,2637.1,2637.0,0.6456]
[1748447108958,0.75822,2636.8,2636.7,3.914]
[1748447109161,1.2523,2637.0,2636.7,21.622]
[1748447109355,0.75821,2636.9,2636.8,2.10589]
[1748447110260,0.75821,2636.9,2636.8,2.10592]
[1748447110458,0.75821,2636.9,2636.8,5.31372]
[1748447111361,0.75813,2637.2,2637.1,0.75811]
[1748447111556,0.75814,2637.2,2637.1,7.8799]
[1748447112065,0.6588,2637.7,2637.1,9.0171]
[1748447112258,0.00569163,2637.8,2637.7,0.75796]
[1748447112461,0.76363163,2637.8,2637.7,24.8298]
[1748447112659,0.76363163,2637.8,2637.7,26.729]
[1748447112860,0.76363163,2637.8,2637.7,27.48696]
[1748447113262,0.76363163,2637.8,2637.7,26.729]
[1748447113664,0.75799,2637.6,2637.5,0.6263]
[1748447113855,5.1865,2637.7,2637.0,2.5255]
[1748447114061,5.10296,2637.4,2636.8,21.621]
[1748447114260,1.3141,2637.3,2636.9,0.75817]
[1748447114556,0.75818,2637.0,2636.9,1.2681]
[1748447114860,0.75818,2637.0,2636.9,2.02629]
[1748447115169,2.02584,2637.1,2637.0,0.75813]
[1748447115459,0.75814,2637.1,2637.0,0.6564]
[1748447115665,0.75817,2637.0,2636.9,1.9093]
[1748447115967,2.64017,2637.0,2636.9,1.9093]
[1748447116269,2.64017,2637.0,2636.9,21.62]
[1748447116767,0.75819,2636.9,2636.8,0.7582]
[1748447116969,0.75822,2636.8,2636.7,1.302]
[1748447117565,0.75825,2636.7,2636.6,0.6564]
[1748447118066,0.75825,2636.7,2636.6,23.03468]
[1748447118265,0.83287908,2636.8,2636.6,22.2764]
[1748447118472,0.07463908,2636.8,2636.7,5.31085]
[1748447118662,0.83285908,2636.8,2636.7,4.5526]
[1748447118862,0.75828,2636.6,2636.5,0.6412]
[1748447119162,0.75834,2636.4,2636.3,0.00569163]
[1748447119766,2.04694,2636.4,2636.3,0.00569163]
[1748447127272,0.75834,2636.4,2636.3,0.00569163]
[1748447127670,2.11384,2636.4,2636.3,0.00569163]
[1748447128172,2.11384,2636.4,2636.3,1.29799163]
[1748447129068,2.11384,2636.4,2636.3,0.00569163]
[1748447129264,5.32164,2636.4,2636.3,0.00569163]
[1748447129661,0.75851,2635.8,2635.7,4.5001]
[1748447129869,0.75851,2635.8,2635.7,26.1171]
[1748447131170,1.98019163,2636.0,2635.7,26.1171]
[1748447131378,0.00569163,2636.0,2635.9,0.75848]
[1748447131678,0.75848,2635.9,2635.8,1.3147]
[1748447131870,0.75848,2635.9,2635.8,23.69121]
[1748447132069,0.75848,2635.9,2635.8,22.9327]
[1748447132271,0.75848,2635.9,2635.8,23.69121]
[1748447132479,0.76416163,2636.0,2635.9,0.75848]
[1748447132773,0.76416163,2636.0,2635.9,23.69218]
[1748447132774,0.00569163,2636.0,2635.9,23.69218]
[1748447133180,0.76414163,2636.0,2635.9,23.69218]
[1748447133777,0.00569163,2636.0,2635.9,23.69218]
[1748447135672,0.08033071,2636.0,2635.9,23.69218]
[1748447135874,0.83878071,2636.0,2635.9,23.69218]
[1748447136179,0.83878071,2636.0,2635.9,2.07318]
[1748447136483,0.83878071,2636.0,2635.9,23.69018]
[1748447137968,0.83878071,2636.0,2635.9,23.68918]
[1748447138678,0.08033071,2636.0,2635.9,23.68918]
[1748447140769,0.83878071,2636.0,2635.9,2.07318]
[1748447140974,0.08033071,2636.0,2635.9,23.68918]
[1748447141274,0.83878071,2636.0,2635.9,23.68918]
[1748447141470,0.83878071,2636.0,2635.7,3.2078]
[1748447141674,0.75851,2635.8,2635.7,4.5054]
[1748447141875,0.75851,2635.8,2635.7,22.2104]
[1748447142080,2.03311,2635.8,2635.7,19.0026]
[1748447142282,2.03311,2635.8,2635.7,1.2976]
[1748447142478,0.75857,2635.6,2635.5,1.26609163]
[1748447142685,0.75857,2635.6,2635.5,18.97109163]
[1748447142879,0.75857,2635.6,2635.5,20.22519163]
[1748447143076,0.75857,2635.6,2635.5,20.98379163]
[1748447144683,0.75856,2635.7,2635.6,0.75856]
[1748447145087,0.08033071,2636.0,2635.6,1.89643]
[1748447145280,0.08033071,2636.0,2635.9,3.96628]
[1748447145474,0.08033071,2636.0,2635.9,7.87728]
[1748447145777,3.2078,2637.2,2636.5,0.75831]
[1748447145986,1.2757,2637.0,2636.9,0.75819]
[1748447146184,0.6547,2637.1,2637.0,0.75816]
[1748447146383,2.03375,2637.4,2637.3,0.75806]
[1748447146681,0.00569163,2637.6,2637.3,0.75808]
[1748447146884,0.00569163,2637.6,2637.5,0.75802]
[1748447147085,0.00569163,2637.6,2637.5,3.96582]
[1748447147285,0.00569163,2637.6,2637.5,5.19312]
[1748447148688,3.2078,2638.6,2638.2,0.75781]
[1748447148886,0.75779,2638.3,2638.2,17.706]
[1748447149084,0.75782,2638.2,2638.1,3.91]
[1748447149389,0.75782,2638.2,2638.1,21.616]
[1748447149784,0.75782,2638.2,2638.1,22.9323]
[1748447150389,2.09741,2638.3,2638.1,23.69013]
[1748447150581,6.3396,2638.3,2637.5,3.2078]
[1748447150786,0.75795,2637.8,2637.6,21.612]
[1748447150989,2.09756,2637.7,2637.6,3.91]
[1748447151387,1.3396,2637.7,2637.6,21.612]
[1748447151584,2.09756,2637.7,2637.6,21.612]
[1748447152780,3.2078,2638.3,2637.6,21.612]
[1748447153089,2.05861,2638.3,2637.8,3.2078]
[1748447153284,0.75779,2638.3,2638.2,0.7578]
[1748447153482,0.76347163,2638.4,2638.2,3.91]
[1748447153684,0.75779,2638.3,2638.2,5.1358]
[1748447153886,0.75779,2638.3,2638.2,3.91]
[1748447154081,2.05859,2638.3,2638.2,3.91]
[1748447154688,0.75782,2638.2,2638.1,3.96564]
[1748447154895,0.75782,2638.2,2638.1,3.2078]
[1748447155196,0.75782,2638.2,2638.1,24.8128]
[1748447155389,2.05861,2638.3,2638.1,25.57065]
[1748447155590,1.3008,2638.3,2638.1,25.57065]
[1748447155788,0.75782,2638.2,2638.1,24.8128]
[1748447156298,0.75782,2638.2,2638.1,25.57065]
[1748447156794,0.75782,2638.2,2638.1,24.8128]
[1748447157094,0.00569163,2638.4,2638.1,24.8128]
[1748447157292,0.76346163,2638.4,2638.3,0.75779]
[1748447157503,0.7578,2638.3,2638.2,0.7578]
[1748447157888,0.7578,2638.3,2638.1,25.57063]
[1748447158084,0.76346163,2638.4,2638.1,24.8128]
[1748447158396,0.00569163,2638.4,2638.3,0.75779]
[1748447158691,0.75791,2637.9,2637.8,3.2078]
[1748447159703,0.75793,2637.8,2637.7,3.909]
[1748447159995,1.89492,2637.7,2637.2,1.42619]
[1748447160299,0.07463908,2637.4,2637.3,21.599]
[1748447160495,0.83269908,2637.4,2637.3,22.35708]
[1748447160790,0.83269908,2637.4,2637.3,21.599]
[1748447161186,0.83269908,2637.4,2637.3,3.905]
[1748447161787,0.75811,2637.2,2637.1,3.21349163]
[1748447162392,0.75811,2637.2,2637.1,0.00569163]
[1748447162795,3.96591,2637.2,2637.1,0.00569163]
[1748447162992,5.20171,2637.2,2637.1,0.00569163]
[1748447163598,1.99391,2637.2,2637.1,0.00569163]
[1748447164297,1.99391,2637.2,2637.1,0.76383163]
[1748447164694,1.99391,2637.2,2637.1,0.00569163]
[1748447165097,1.99391,2637.2,2637.1,0.76383163]
[1748447165297,1.99391,2637.2,2637.1,0.00569163]
[1748447165599,1.2358,2637.2,2637.1,0.76383163]
[1748447165795,1.2358,2637.2,2637.1,0.00569163]
[1748447165994,1.2358,2637.2,2637.1,0.76383163]
[1748447166195,1.45588908,2637.4,2637.2,0.7581]
[1748447166396,0.07463908,2637.4,2637.3,0.75808]
[1748447166992,0.07463908,2637.4,2637.3,2.10258]
[1748447174799,2.17998908,2637.4,2637.3,19.0365]
[1748447174998,1.42193908,2637.4,2637.3,3.905]
[1748447175198,1.42193908,2637.4,2637.3,4.66308]
[1748447179210,1.42193908,2637.4,2637.3,6.00158]
[1748447180705,0.75811,2637.2,2637.1,1.80617665]
[1748447180905,3.96591,2637.2,2637.1,0.00569163]
[1748447181100,8.96591,2637.2,2637.1,0.00569163]
[1748447181299,51.02551,2637.2,2637.1,0.00569163]
[1748447181502,5.22551,2637.2,2637.1,0.00569163]
[1748447181711,1.2596,2637.2,2637.1,0.00569163]
[1748447181916,2.01771,2637.2,2637.1,0.00569163]
[1748447186610,1.2596,2637.2,2637.1,0.00569163]
[1748447186915,2.01771,2637.2,2637.1,0.00569163]
[1748447187305,1.2596,2637.2,2637.1,0.00569163]
[1748447187516,0.07463908,2637.4,2637.2,0.75808]
[1748447187713,0.07463908,2637.4,2637.3,5.31088]
[1748447191217,0.07463908,2637.4,2637.3,7.12244403]
[1748447191611,0.07463908,2637.4,2637.3,5.31088]
[1748447192516,0.07463908,2637.4,2637.3,7.12274746]
[1748447192717,0.07463908,2637.4,2637.3,5.31088]
[1748447193221,0.07463908,2637.4,2637.3,7.12309967]
[1748447194116,0.07463908,2637.4,2637.3,5.31088]
[1748447194519,0.07463908,2637.4,2637.3,11.02538164]
[1748447194721,0.07463908,2637.4,2637.3,28.71375182]
[1748447195215,0.07463908,2637.4,2637.3,7.12375182]
[1748447195723,0.07463908,2637.4,2637.3,28.71375182]
[1748447197220,0.07463908,2637.4,2637.3,26.90088]
[1748447198417,0.6322,2638.1,2638.0,0.75788]
[1748447198818,1.3486,2638.2,2638.1,0.75785]
[1748447199018,1.3486,2638.2,2638.1,2.08345]
[1748447199222,0.00569163,2638.4,2638.3,0.75779]
[1748447200822,1.28219163,2638.4,2638.3,0.75779]
[1748447203429,0.00569163,2638.4,2638.3,0.75779]
[1748447203631,0.00569163,2638.4,2638.3,3.96559]
[1748447209838,0.08033071,2638.4,2638.3,3.96559]
[1748447210037,0.08033071,2638.4,2638.3,22.33779]
[1748447210440,0.08033071,2638.4,2638.3,25.54559]
[1748447211145,0.75782,2638.2,2638.1,1.3256]
[1748447211346,0.75785,2638.1,2638.0,1.81345123]
[1748447212147,1.98295,2638.1,2637.9,0.7579]
[1748447212449,0.75796,2637.7,2637.6,1.80736991]
[1748447212748,0.75802,2637.5,2637.4,7.1088]
[1748447212949,0.75811,2637.2,2637.1,0.00569163]
[1748447213143,3.96591,2637.2,2637.1,0.00569163]
[1748447213339,1.89551,2636.9,2636.4,1.80736991]
[1748447213648,0.75826,2636.7,2636.4,0.75832]
[1748447214039,1.3561,2636.6,2636.4,0.75832]
[1748447214244,1.3561,2636.6,2636.5,0.75831]
[1748447214546,0.1137,2636.6,2636.5,0.75831]
[1748447217346,0.1137,2636.6,2636.5,4.65931]
[1748447217543,0.1137,2636.6,2636.5,22.33931]
[1748447220847,0.1137,2636.6,2636.5,0.75831]
[1748447221148,0.1137,2636.6,2636.5,22.33631]
[1748447222648,0.1137,2636.6,2636.5,0.75831]
[1748447222950,0.1137,2636.6,2636.5,22.33831]
[1748447225962,0.18833908,2636.6,2636.5,22.33831]
[1748447227953,0.07463908,2636.6,2636.5,22.33831]
[1748447228158,9.08e-06,2636.6,2636.5,22.33831]
[1748447228353,1.2775,2637.2,2637.1,0.75814]
[1748447228546,1.2967,2637.4,2637.3,0.75808]
[1748447228745,1.2775,2637.6,2637.5,0.75802]
[1748447231156,0.1137,2637.7,2637.6,0.75799]
[1748447232060,0.1137,2637.7,2637.6,2.00199]
[1748447232550,0.1137,2637.7,2637.6,5.20979]
[1748447234660,0.1137,2637.7,2637.6,26.78679]
[1748447236155,0.75806,2637.4,2637.3,0.75807]
[1748447236359,3.2078,2637.4,2636.7,4.5572]
[1748447236552,1.2792,2637.3,2636.8,17.677]
[1748447236756,1.2792,2637.3,2636.9,21.83817929]
[1748447236961,1.2792,2637.3,2637.2,0.75811]
[1748447237855,1.2792,2637.3,2637.2,2.00161]
[1748447240267,1.2792,2637.3,2637.2,5.20941]
[1748447240471,0.6168,2637.6,2637.5,0.75802]
[1748447241367,0.75803,2637.5,2637.4,0.75804]
[1748447241560,2.10903,2637.5,2637.4,0.75804]
[1748447241954,1.351,2637.5,2637.4,0.75804]
[1748447246671,2.10902,2637.5,2637.4,18.43404]
[1748447246870,1.351,2637.5,2637.4,18.43404]
[1748447248371,1.351,2637.5,2637.2,7.1048]
[1748447248666,0.6615,2637.4,2637.3,0.75807]
[1748447249066,1.8927,2637.4,2637.3,0.75807]
[1748447250675,1.8927,2637.4,2636.9,3.2078]
[1748447250879,0.75815,2637.1,2637.0,18.43314]
[1748447251281,0.83282908,2637.0,2636.9,0.75818]
[1748447251580,0.83282908,2637.0,2636.9,18.43218]
[1748447251878,0.83282908,2637.0,2636.9,0.75818]
[1748447252174,0.83282908,2637.0,2636.4,4.16152929]
[1748447252175,0.75834,2636.4,2636.0,5.47350929]
[1748447252378,0.75834,2636.4,2636.0,4.4701]
[1748447252879,0.75834,2636.4,2636.1,0.75841]
[1748447253180,0.75842,2636.1,2636.0,3.2078]
[1748447253473,1.89607,2636.1,2635.6,1.2623]
[1748447253667,1.9039,2636.0,2635.7,18.43253]
[1748447253868,0.7585,2635.9,2635.7,0.75853]
[1748447254075,4.497,2635.8,2635.1,2.26570929]
[1748447254377,0.75864,2635.4,2635.2,0.00569163]
[1748447254576,2.04786,2635.3,2635.2,0.00569163]
[1748447254980,1.2892,2635.3,2635.2,0.00569163]
[1748447255278,2.04786,2635.3,2635.2,0.00569163]
[1748447260191,1.2892,2635.3,2635.2,0.00569163]
[1748447260388,1.2892,2635.3,2635.2,0.76437163]
[1748447260683,0.1138,2635.4,2635.3,0.75865]
[1748447260878,0.1138,2635.4,2635.3,5.32145]
[1748447261079,0.1138,2635.4,2635.3,9.21645]
[1748447261278,0.1138,2635.4,2635.3,5.1799]
[1748447261588,0.87243,2635.4,2635.3,22.932]
[1748447261979,0.87243,2635.4,2635.3,1.355]
[1748447262286,0.75866,2635.3,2635.2,0.00569163]
[1748447262483,2.07946,2635.3,2635.2,0.00569163]
[1748447262887,2.75726,2635.3,2635.2,0.00569163]
[1748447268086,43.55726,2635.3,2635.2,0.00569163]
[1748447270592,43.63189908,2635.3,2635.2,0.00569163]
[1748447270791,48.63189908,2635.3,2635.2,0.00569163]
[1748447271383,43.63189908,2635.3,2635.2,0.00569163]
[1748447272491,0.7588,2634.8,2634.7,1.2512]
[1748447272889,1.89701,2634.8,2634.4,1.2461]
[1748447273087,3.2078,2634.5,2634.3,1.2247]
[1748447273297,0.75901,2634.1,2634.0,0.75901]
[1748447273802,0.75899,2634.2,2634.1,0.75897]
[1748447274104,0.76464163,2634.3,2634.2,0.75897]
[1748447275000,1.89746,2634.2,2633.8,0.00569163]
[1748447275302,5.11088163,2634.3,2633.8,0.00569163]
[1748447275498,0.75906,2633.9,2633.8,0.76475163]
[1748447275696,0.75905,2634.0,2633.9,0.75904]
[1748447275996,3.21349163,2634.3,2633.9,1.2559]
[1748447276194,0.75901,2634.1,2634.0,0.759]
[1748447276902,0.75903,2634.0,2633.9,2.01494]
[1748447277099,0.75903,2634.0,2633.9,1.2559]
[1748447277902,0.75903,2634.0,2633.9,2.01496]
[1748447278294,0.75902,2634.1,2633.9,1.2559]
[1748447278497,0.75903,2634.0,2633.9,2.01493]
[1748447278905,0.75903,2634.0,2633.9,5.22273]
[1748447279100,0.75903,2634.0,2633.9,26.0497]
[1748447279406,0.75903,2634.0,2633.9,1.2559]
[1748447279998,0.75906,2633.9,2633.8,0.00569163]
[1748447284704,5.75906,2633.9,2633.8,1.63e-06]
[1748447285204,6.99856,2633.9,2633.8,1.63e-06]
[1748447285507,47.79856,2633.9,2633.8,1.63e-06]
[1748447285805,48.89190606,2633.9,2633.8,1.63e-06]
[1748447286305,42.87319908,2633.9,2633.8,1.63e-06]
[1748447287106,47.87319908,2633.9,2633.8,1.63e-06]
[1748447289297,42.87319908,2633.9,2633.8,1.63e-06]
[1748447290512,7.07319908,2633.9,2633.8,1.63e-06]
[1748447291010,46.76919908,2633.9,2633.8,1.63e-06]
[1748447291409,51.76919908,2633.9,2633.2,0.6378]
[1748447291609,0.75929,2633.1,2633.0,1.9934]
[1748447291804,0.75946,2632.5,2632.4,3.2078]
[1748447292002,0.75946,2632.5,2632.4,20.9018]
[1748447292205,0.75946,2632.5,2632.4,21.66129]
[1748447292508,3.25181,2633.0,2632.4,21.66128]
[1748447292509,0.75944,2632.6,2632.4,21.66128]
[1748447292705,0.75946,2632.5,2632.4,20.9018]
[1748447293106,0.00569163,2632.7,2632.5,0.75946]
[1748447293414,0.75946,2632.5,2632.4,20.9018]
[1748447293714,0.75946,2632.5,2632.4,3.2078]
[1748447293911,0.75945,2632.6,2632.4,3.2078]
[1748447294218,0.76511163,2632.7,2632.6,0.75943]
[1748447294515,0.00569163,2632.7,2632.6,0.75943]
[1748447295018,0.76509163,2632.7,2632.6,0.75943]
[1748447295915,0.76509163,2632.7,2632.5,1.38645]
[1748447296416,0.75943,2632.6,2632.5,18.3294112]
[1748447298014,0.00569163,2632.7,2632.5,19.0888712]
[1748447298416,0.75943,2632.6,2632.5,18.3294112]
[1748447299520,0.00569163,2632.7,2632.6,0.75943]
[1748447299815,0.75943,2632.6,2632.5,18.3304112]
[1748447300215,0.75943,2632.6,2632.5,18.3314112]
[1748447301216,0.83406908,2632.6,2632.5,18.3314112]
[1748447301419,0.07463908,2632.6,2632.5,19.0908712]
[1748447301912,0.83406908,2632.6,2632.5,18.3314112]
[1748447303515,0.83406908,2632.6,2632.5,18.3324112]
[1748447303915,0.83406908,2632.6,2632.5,0.6344112]
[1748447304116,0.83406908,2632.6,2632.5,18.3324112]
[1748447306213,0.83406908,2632.6,2632.5,19.6727112]
[1748447306621,0.83406908,2632.6,2632.5,1.9747112]
[1748447308624,0.83406908,2632.6,2632.5,1.3477112]
[1748447309625,0.07463908,2632.6,2632.5,2.1071712]
[1748447311118,0.07463908,2632.6,2632.5,19.8051712]
[1748447311327,0.07463908,2632.6,2632.5,23.7001712]
[1748447312021,0.07463908,2632.6,2632.5,19.8051712]
[1748447312231,0.83406908,2632.6,2632.5,1.3477112]
[1748447312830,0.83406908,2632.6,2632.5,0.0074112]
[1748447313130,2.14176908,2632.6,2632.5,0.0074112]
[1748447313732,42.94176908,2632.6,2632.5,0.0074112]
[1748447314132,2.14176908,2632.6,2632.5,0.0074112]
[1748447315634,0.83406908,2632.6,2632.5,0.0074112]
[1748447315827,0.07463908,2632.6,2632.5,2.0015712]
[1748447316036,0.83406908,2632.6,2632.5,2.0015712]
[1748447316227,0.07463908,2632.6,2632.5,19.6995712]
[1748447316827,0.07463908,2632.6,2632.5,23.5955712]
[1748447317027,0.83406908,2632.6,2632.5,23.5955712]
[1748447317624,0.83406908,2632.6,2632.5,2.0015712]
[1748447317829,0.83406908,2632.6,2632.5,23.5955712]
[1748447318630,0.07463908,2632.6,2632.5,23.5955712]
[1748447318836,0.07463908,2632.6,2632.5,28.5955712]
[1748447319731,0.07463908,2632.6,2632.5,23.5955712]
[1748447320231,0.83406908,2632.6,2632.5,5.1371112]
[1748447320432,0.83406908,2632.6,2632.5,22.8351112]
[1748447320833,0.83406908,2632.6,2632.5,3.06912967]
[1748447321135,0.83406908,2632.6,2632.5,5.1371112]
[1748447321335,0.83406908,2632.6,2632.5,5.8965712]
[1748447322330,2.09266908,2632.6,2632.5,5.8965712]
[1748447322547,2.09266908,2632.6,2632.5,5.1371112]
[1748447322731,2.09266908,2632.6,2632.5,0.0074112]
[1748447323531,2.09266908,2632.6,2632.5,1.83577686]
[1748447323734,2.09266908,2632.6,2632.5,0.0074112]
[1748447323934,2.09266908,2632.6,2632.5,0.7668712]
[1748447324437,0.07463908,2632.6,2632.5,2.0849712]
[1748447324636,0.07463908,2632.6,2632.5,2.7157712]
[1748447325844,7.1038,2634.2,2633.1,1.8982]
[1748447326035,7.1038,2634.2,2633.6,3.2078]
[1748447326036,0.75912,2633.7,2633.6,3.2078]
[1748447326237,0.75912,2633.7,2633.6,4.5172]
[1748447326739,0.75917,2633.5,2633.4,0.00569163]
[1748447327039,3.96697,2633.5,2633.4,0.00569163]
[1748447327536,0.75917,2633.5,2633.4,0.00569163]
[1748447330835,2.62517,2633.5,2633.4,0.00569163]
[1748447331044,1.89821,2633.2,2632.6,3.2078]
[1748447331340,1.8983,2633.0,2632.7,17.695]
[1748447331538,0.75938,2632.8,2632.7,17.695]
[1748447331742,1.2759,2632.9,2632.6,3.2078]
[1748447331743,0.7594,2632.7,2632.6,3.2078]
[1748447331940,0.7594,2632.7,2632.6,20.9028]
[1748447332344,0.7594,2632.7,2632.6,3.2078]
[1748447332542,0.75943,2632.6,2632.5,0.0074112]
[1748447332742,5.24313,2632.6,2632.5,0.0074112]
[1748447332942,1.89881,2632.3,2631.9,2.27912538]
[1748447333147,0.75961,2632.0,2631.9,2.27912538]
[1748447334441,0.75966,2631.8,2631.7,0.00569163]
[1748447337744,4.65566,2631.8,2631.7,0.00569163]
[1748447337947,5.93096,2631.8,2631.7,0.00569163]
[1748447338148,0.75987,2631.1,2631.0,3.2078]
[1748447338337,0.75987,2631.1,2631.0,20.9128]
[1748447338537,0.7599,2631.0,2630.9,0.7599]
[1748447338745,1.89952,2631.4,2630.9,17.703]
[1748447338944,0.6627,2631.5,2630.9,20.9108]
[1748447339149,0.6706,2631.7,2630.9,20.9108]
[1748447339150,0.75981,2631.4,2631.3,0.7598]
[1748447339349,0.75981,2631.4,2631.3,0.6406]
[1748447341150,0.75987,2631.1,2631.0,0.75988]
[1748447341344,0.75987,2631.1,2631.0,18.45888]
[1748447341948,0.75987,2631.1,2631.0,17.699]
[1748447342348,0.75987,2631.1,2631.0,18.4589]
[1748447342956,3.16868,2631.4,2630.9,3.2115944]
[1748447343149,0.7599,2631.0,2630.9,7.1065944]
[1748447343349,0.7599,2631.0,2630.9,3.2115944]
[1748447343657,0.7599,2631.0,2630.9,20.9115944]
[1748447343857,0.7599,2631.0,2630.9,21.6715144]
[1748447344155,0.7599,2631.0,2630.9,0.0037944]
[1748447344556,2.6612,2631.0,2630.9,4.4e-06]
[1748447344950,0.7599,2631.0,2630.9,4.4e-06]
[1748447345848,0.07463908,2631.1,2630.9,4.4e-06]
[1748447346049,0.07463908,2631.1,2631.0,0.7599]
[1748447346255,0.07463908,2631.1,2631.0,3.9677]
[1748447346454,0.07463908,2631.1,2631.0,5.2181]
[1748447346958,1e-08,2631.1,2631.0,10.2181]
[1748447347761,0.75965,2631.9,2631.4,1.89944]
[1748447347950,0.00569163,2632.2,2632.1,0.75958]
[1748447348151,0.76526163,2632.2,2632.0,0.75959]
[1748447348347,0.76526163,2632.2,2632.1,1.2504]
[1748447349059,0.76524163,2632.2,2632.1,5.21778]
[1748447349358,0.76524163,2632.2,2632.1,2.00998]
[1748447349555,0.76524163,2632.2,2632.1,1.2504]
[1748447349759,0.76524163,2632.2,2632.1,2.00998]
[1748447351357,0.00569163,2632.2,2632.1,2.00998]
[1748447351858,0.76524163,2632.2,2632.1,2.00998]
[1748447352058,0.00569163,2632.2,2632.1,2.00998]
[1748447353054,0.76524163,2632.2,2632.1,1.2504]
[1748447354465,0.00569163,2632.2,2632.1,2.00998]
[1748447354849,0.76524163,2632.2,2632.1,2.00998]
[1748447357456,0.76524163,2632.2,2632.1,1.2504]
[1748447358762,0.75966,2631.8,2631.7,2.04178]
[1748447358957,0.75966,2631.8,2631.7,1.2821]
[1748447359357,0.75966,2631.8,2631.7,2.04179]
[1748447360162,0.83991071,2632.2,2632.1,0.75958]
[1748447360365,0.08033071,2632.2,2632.1,0.75958]
[1748447361359,0.08033071,2632.2,2632.1,2.04168]
[1748447362563,0.08033071,2632.2,2632.1,19.74268]
[1748447366462,0.08033071,2632.2,2632.1,2.04168]
[1748447366656,0.08033071,2632.2,2632.1,19.74068]
[1748447367764,0.08033071,2632.2,2632.1,2.04168]
[1748447367765,0.83988071,2632.2,2632.1,2.04168]
[1748447367965,0.83988071,2632.2,2632.1,19.74068]
[1748447368458,0.83988071,2632.2,2632.1,18.9811]
[1748447369462,0.83988071,2632.2,2632.1,19.74068]
[1748447370370,0.08033071,2632.2,2632.1,19.74068]
[1748447370866,0.08033071,2632.2,2632.1,24.74068]
[1748447373467,0.08033071,2632.2,2632.1,19.74068]
[1748447373669,0.08033071,2632.2,2632.1,24.74068]
[1748447375167,0.1139,2632.4,2632.3,0.75952]
[1748447375366,0.1139,2632.4,2632.3,7.86132]
[1748447375862,0.1139,2632.4,2632.3,9.10692]
[1748447376768,0.00569163,2632.6,2632.5,0.75946]
[1748447378266,0.75949,2632.4,2632.3,6.73821701]
[1748447378575,0.75949,2632.4,2632.3,1.25129163]
[1748447379373,0.75948,2632.5,2632.4,0.75946]
[1748447379574,2.67864163,2632.6,2632.5,0.75946]
[1748447379876,0.76514163,2632.6,2632.5,2.10376]
[1748447380076,0.00569163,2632.6,2632.5,2.10376]
[1748447381171,0.1139,2632.7,2632.6,0.75943]
[1748447381372,1.9645,2633.3,2633.2,0.75926]
[1748447381373,0.6167,2633.3,2633.2,0.75926]
[1748447381570,1.3478,2633.5,2633.4,0.7592]
[1748447381778,1.3478,2633.5,2633.2,20.9038]
[1748447381779,1.42747,2633.6,2633.5,0.75917]
[1748447382078,0.75919,2633.5,2633.4,0.75918]
[1748447382280,0.75919,2633.5,2633.4,1.3549]
[1748447385174,0.75919,2633.5,2633.4,2.1141]
[1748447386077,1.42748,2633.6,2633.5,0.75917]
[1748447386380,1.42746,2633.6,2633.5,2.02967]
[1748447386977,0.66831,2633.6,2633.5,2.02967]
[1748447387281,1.42746,2633.6,2633.5,5.92267]
[1748447387982,1.42746,2633.6,2633.5,5.1635]
[1748447388187,1.42746,2633.6,2633.5,21.585]
[1748447389077,1.42746,2633.6,2633.5,22.34417]
[1748447389277,1.42746,2633.6,2633.5,21.585]
[1748447389482,1.50209908,2633.6,2633.5,21.585]
[1748447390388,1.50209908,2633.6,2633.5,17.691]
[1748447390783,2.76789908,2633.6,2633.5,17.691]
[1748447394487,0.75917,2633.5,2633.4,5.2454]
[1748447394786,2.05177,2633.5,2633.4,22.9344]
[1748447395287,2.05177,2633.5,2633.4,1.3524]
[1748447395477,2.05177,2633.5,2633.4,22.9344]
[1748447395677,0.75917,2633.5,2633.4,23.6936]
[1748447395884,0.75917,2633.5,2633.4,22.9344]
[1748447396285,2.02927,2633.5,2633.4,22.9344]
[1748447399387,0.7592,2633.4,2633.3,3.2078]
[1748447399591,0.75938,2632.8,2632.7,6.54497]
[1748447399782,0.75949,2632.5,2632.3,5.87627027]
[1748447399985,0.75949,2632.4,2632.3,2.28481701]
[1748447400187,0.75949,2632.4,2632.3,3.21349163]
[1748447400588,0.75949,2632.4,2632.3,3.97301163]
[1748447400986,0.75949,2632.4,2632.3,5.19641163]